fUSD/lending_fUSD_20250818
["ID","MTS","AMOUNT","RATE_DAILY","PERIOD"]
[380021470,1755479462737,-772.46,0.00013698,2]
[380021471,1755479462747,-3175.79,0.00013698,2]
[380021472,1755479462757,-2205.75,0.00013698,2]
[380021473,1755479462767,-5170.62,0.00013698,2]
[380021474,1755479462777,-400.0,0.00013698,2]
[380021475,1755479462789,-400.0,0.00013698,2]
[380021476,1755479462798,-559.97,0.00013698,2]
[380021477,1755479462808,-875.93,0.00013698,2]
[380021478,1755479462817,-400.0,0.00013698,2]
[380021479,1755479462837,-400.0,0.00013698,2]
[380021480,1755479462848,-151.0,0.00013698,2]
[380021481,1755479462858,-1686.21,0.00013698,2]
[380021482,1755479462868,-400.0,0.00013698,2]
[380021483,1755479462878,-500.0,0.00013698,2]
[380021484,1755479462888,-400.0,0.00013698,2]
[380021485,1755479462898,-500.0,0.00013698,2]
[380021486,1755479462907,-500.0,0.00013698,2]
[380021487,1755479462917,-500.0,0.00013698,2]
[380021488,1755479462927,-500.0,0.00013698,2]
[380021489,1755479462937,-500.0,0.00013698,2]
[380021490,1755479462948,-500.0,0.00013698,2]
[380021491,1755479462957,-500.0,0.00013698,2]
[380021492,1755479462967,-151.0,0.00013698,2]
[380021493,1755479462977,-500.0,0.00013698,2]
[380021494,1755479462987,-500.0,0.00013698,2]
[380021495,1755479462997,-500.0,0.00013698,2]
[380021496,1755479463007,-500.0,0.00013698,2]
[380021497,1755479463017,-767.47,0.00013698,2]
[380021498,1755479463027,-460.18,0.00013698,2]
[380021499,1755479463038,-151.0,0.00013698,2]
[380021500,1755479463048,-262.493572,0.00013698,2]
[380021501,1755479463058,-400.0,0.00013698,2]
[380021502,1755479463067,-400.0,0.00013698,2]
[380021503,1755479463077,-151.0,0.00013698,2]
[380021504,1755479463088,-400.0,0.00013698,2]
[380021505,1755479463098,-1026.22,0.00013698,2]
[380021506,1755479463107,-400.0,0.00013698,2]
[380021507,1755479463118,-2124.13,0.00013698,2]
[380021508,1755479463128,-672.62,0.00013698,2]
[380021509,1755479463139,-591.82,0.00013698,2]
[380021510,1755479463148,-400.0,0.00013698,2]
[380021511,1755479463158,-400.0,0.00013698,2]
[380021512,1755479463169,-1133.16,0.00013698,2]
[380021513,1755479463179,-400.0,0.00013698,2]
[380021514,1755479463190,-1009.406077,0.00013698,2]
[380021515,1755479463201,-4317.66,0.00013698,2]
[380021516,1755479463212,-400.0,0.00013698,2]
[380021517,1755479463223,-1594.98,0.00013698,2]
[380021518,1755479463234,-400.0,0.00013698,2]
[380021519,1755479463244,-359.46586,0.00013698,2]
[380021520,1755479463254,-2767.761148,0.00013698,2]
[380021521,1755479463264,-151.0,0.00013698,2]
[380021522,1755479463274,-151.0,0.00013698,2]
[380021523,1755479463284,-1911.27,0.00013698,2]
[380021524,1755479463294,-1009.406077,0.00013698,2]
[380021525,1755479463304,-400.0,0.00013698,2]
[380021526,1755479463316,-675.04,0.00013698,2]
[380021527,1755479463326,-359.46586,0.00013698,2]
[380021528,1755479463336,-1454.13,0.00013698,2]
[380021529,1755479463346,-2767.761148,0.00013698,2]
[380021530,1755479463356,-151.0,0.00013698,2]
[380021531,1755479463365,-151.0,0.00013698,2]
[380021532,1755479463376,-400.0,0.00013698,2]
[380021533,1755479463390,-400.0,0.00013698,2]
[380021534,1755479463400,-400.0,0.00013698,2]
[380021535,1755479463410,-2433.28,0.00013698,2]
[380021536,1755479463420,-2332.49,0.00013698,2]
[380021537,1755479463439,-2415.46,0.00013698,2]
[380021538,1755479463449,-705.92,0.00013698,2]
[380021539,1755479463459,-2666.92,0.00013698,2]
[380021540,1755479463469,-2545.75,0.00013698,2]
[380021541,1755479463479,-400.0,0.00013698,2]
[380021542,1755479463490,-151.0,0.00013698,2]
[380021543,1755479463500,-1006.61,0.00013698,2]
[380021544,1755479463510,-1118.32,0.00013698,2]
[380021545,1755479463520,-962.93,0.00013698,2]
[380021546,1755479463529,-151.0,0.00013698,2]
[380021547,1755479463540,-400.0,0.00013698,2]
[380021548,1755479463550,-772.46,0.00013698,2]
[380021549,1755479463560,-6412.29,0.00013698,2]
[380021550,1755479463570,-400.0,0.00013698,2]
[380021551,1755479463580,-212.168901,0.00013698,2]
[380021552,1755479463589,-1059.23,0.00013698,2]
[380021553,1755479463599,-400.0,0.00013698,2]
[380021554,1755479463609,-4842.54,0.00013698,2]
[380021555,1755479463618,-1817.8,0.00013698,2]
[380021556,1755479463628,-400.0,0.00013698,2]
[380021557,1755479463637,-212.168901,0.00013698,2]
[380021558,1755479463648,-400.0,0.00013698,2]
[380021559,1755479463657,-2763.19,0.00013698,2]
[380021560,1755479463668,-2826.43,0.00013698,2]
[380021561,1755479463678,-2334.61,0.00013698,2]
[380021562,1755479463688,-400.0,0.00013698,2]
[380021563,1755479463698,-400.0,0.00013698,2]
[380021564,1755479463707,-500.0,0.00013698,2]
[380021565,1755479463717,-500.0,0.00013698,2]
[380021566,1755479463727,-4354.7,0.00013698,2]
[380021567,1755479463737,-168.75024713,0.00013698,2]
[380021568,1755479463747,-579.86,0.00013698,2]
[380021569,1755479463757,-2063.66,0.00013698,2]
[380021570,1755479463768,-637.0,0.00013698,2]
[380021571,1755479463781,-400.0,0.00013698,2]
[380021572,1755479463791,-400.0,0.00013698,2]
[380021573,1755479463800,-400.0,0.00013698,2]
[380021574,1755479463810,-10403.2,0.00013698,2]
[380021575,1755479463821,-400.0,0.00013698,2]
[380021576,1755479463830,-400.0,0.00013698,2]
[380021577,1755479463840,-3961.78,0.00013698,2]
[380021578,1755479463851,-400.0,0.00013698,2]
[380021579,1755479463860,-5896.85,0.00013698,2]
[380021580,1755479463870,-472.52,0.00013698,2]
[380021581,1755479463880,-400.0,0.00013698,2]
[380021582,1755479463889,-500.0,0.00013698,2]
[380021583,1755479463899,-500.0,0.00013698,2]
[380021584,1755479463908,-2939.81,0.00013698,2]
[380021585,1755479463917,-500.0,0.00013698,2]
[380021586,1755479463927,-500.0,0.00013698,2]
[380021587,1755479463936,-500.0,0.00013698,2]
[380021588,1755479463945,-474.566646,0.00013698,2]
[380021589,1755479463955,-237.284095,0.00013698,2]
[380021590,1755479463964,-500.0,0.00013698,2]
[380021591,1755479463974,-500.0,0.00013698,2]
[380021592,1755479463984,-500.0,0.00013698,2]
[380021593,1755479463993,-500.0,0.00013698,2]
[380021594,1755479464003,-500.0,0.00013698,2]
[380021595,1755479464012,-641.13,0.00013698,2]
[380021596,1755479464022,-601.29,0.00013698,2]
[380021597,1755479464031,-500.0,0.00013698,2]
[380021598,1755479464041,-500.0,0.00013698,2]
[380021599,1755479464051,-500.0,0.00013698,2]
[380021600,1755479464061,-713.93,0.00013698,2]
[380021601,1755479464071,-500.0,0.00013698,2]
[380021602,1755479464081,-2128.41,0.00013698,2]
[380021603,1755479464090,-803.56,0.00013698,2]
[380021604,1755479464099,-549.07,0.00013698,2]
[380021605,1755479464109,-500.0,0.00013698,2]
[380021606,1755479464119,-272.0146521,0.00013698,2]
[380021607,1755479464128,-474.566646,0.00013698,2]
[380021608,1755479464138,-4478.12,0.00013698,2]
[380021609,1755479464147,-237.284095,0.00013698,2]
[380021610,1755479464156,-11346.16,0.00013698,2]
[380021611,1755479464166,-3971.69,0.00013698,2]
[380021612,1755479464175,-400.0,0.00013698,2]
[380021613,1755479464185,-590.428737,0.00013698,2]
[380021614,1755479464194,-400.0,0.00013698,2]
[380021615,1755479464204,-1007.73,0.00013698,2]
[380021616,1755479464214,-214.97003018,0.00013698,2]
[380021617,1755479464223,-446.21,0.00013698,2]
[380021618,1755479464233,-590.428737,0.00013698,2]
[380021619,1755479464242,-400.0,0.00013698,2]
[380021620,1755479464252,-2104.61,0.00013698,2]
[380021621,1755479464261,-761.02,0.00013698,2]
[380021622,1755479464271,-400.0,0.00013698,2]
[380021623,1755479464281,-3754.14,0.00013698,2]
[380021624,1755479464291,-1091.01,0.00013698,2]
[380021625,1755479464300,-400.0,0.00013698,2]
[380021626,1755479464310,-4839.31,0.00013698,2]
[380021627,1755479464319,-612.56,0.00013698,2]
[380021628,1755479464329,-612.56,0.00013698,2]
[380021629,1755479464339,-612.56,0.00013698,2]
[380021630,1755479464349,-1341.56,0.00013698,2]
[380021631,1755479464359,-1842.14,0.00013698,2]
[380021632,1755479464368,-435.08,0.00013698,2]
[380021633,1755479464377,-612.56,0.00013698,2]
[380021634,1755479464387,-612.56,0.00013698,2]
[380021635,1755479464397,-612.56,0.00013698,2]
[380021636,1755479464407,-612.56,0.00013698,2]
[380021637,1755479464416,-612.56,0.00013698,2]
[380021638,1755479464426,-612.56,0.00013698,2]
[380021639,1755479464436,-1390.06,0.00013698,2]
[380021640,1755479464445,-612.56,0.00013698,2]
[380021641,1755479464461,-400.0,0.00013698,2]
[380021642,1755479464471,-400.0,0.00013698,2]
[380021643,1755479464481,-612.56,0.00013698,2]
[380021644,1755479464491,-612.56,0.00013698,2]
[380021645,1755479464500,-620.759057,0.00013698,2]
[380021646,1755479464510,-612.56,0.00013698,2]
[380021647,1755479464519,-612.56,0.00013698,2]
[380021648,1755479464529,-612.56,0.00013698,2]
[380021649,1755479464538,-612.56,0.00013698,2]
[380021650,1755479464547,-612.56,0.00013698,2]
[380021651,1755479464556,-612.56,0.00013698,2]
[380021652,1755479464565,-612.56,0.00013698,2]
[380021653,1755479464575,-400.0,0.00013698,2]
[380021654,1755479464583,-612.56,0.00013698,2]
[380021655,1755479464593,-612.56,0.00013698,2]
[380021656,1755479464602,-1130.24,0.00013698,2]
[380021657,1755479464613,-612.56,0.00013698,2]
[380021658,1755479464622,-612.56,0.00013698,2]
[380021659,1755479464632,-400.0,0.00013698,2]
[380021660,1755479464641,-620.759057,0.00013698,2]
[380021661,1755479464650,-612.68260559,0.00013698,2]
[380021662,1755479464660,-151.0,0.00013698,2]
[380021663,1755479464669,-400.0,0.00013698,2]
[380021664,1755479464678,-2526.43,0.00013698,2]
[380021665,1755479464687,-400.0,0.00013698,2]
[380021666,1755479464696,-1003.23,0.00013698,2]
[380021667,1755479464705,-3406.01,0.00013698,2]
[380021668,1755479464714,-458.61,0.00013698,2]
[380021669,1755479464723,-400.0,0.00013698,2]
[380021670,1755479464733,-5393.64,0.00013698,2]
[380021671,1755479464742,-400.0,0.00013698,2]
[380021672,1755479464751,-400.24363567,0.00013698,2]
[380021673,1755479464760,-400.0,0.00013698,2]
[380021674,1755479464769,-2797.96,0.00013698,2]
[380021675,1755479464783,-2319.72,0.00013698,2]
[380021676,1755479464792,-244.031451,0.00013698,2]
[380021677,1755479464802,-3934.9,0.00013698,2]
[380021678,1755479464811,-400.0,0.00013698,2]
[380021679,1755479464820,-332.030382,0.00013698,2]
[380021680,1755479464829,-5454.16,0.00013698,2]
[380021681,1755479464838,-400.0,0.00013698,2]
[380021682,1755479464847,-244.031451,0.00013698,2]
[380021683,1755479464855,-942.99,0.00013698,2]
[380021684,1755479464865,-400.0,0.00013698,2]
[380021685,1755479464874,-400.0,0.00013698,2]
[380021686,1755479464883,-2249.31,0.00013698,2]
[380021687,1755479464892,-400.0,0.00013698,2]
[380021688,1755479464901,-4411.16,0.00013698,2]
[380021689,1755479464911,-400.0,0.00013698,2]
[380021690,1755479464920,-907.43,0.00013698,2]
[380021691,1755479464929,-279.594595,0.00013698,2]
[380021692,1755479464939,-3185.21,0.00013698,2]
[380021693,1755479464948,-663.5,0.00013698,2]
[380021694,1755479464957,-332.030382,0.00013698,2]
[380021695,1755479464966,-400.0,0.00013698,2]
[380021696,1755479464975,-400.0,0.00013698,2]
[380021697,1755479464984,-1250.75,0.00013698,2]
[380021698,1755479464992,-459.52639571,0.00013698,2]
[380021699,1755479465001,-3550.06,0.00013698,2]
[380021700,1755479465011,-724.36716,0.00013698,2]
[380021701,1755479465019,-13060.56815891,0.00013698,2]
[380021703,1755479468971,-151.0,0.000123,2]
[380021704,1755479468980,-151.0,0.000123,2]
[380021705,1755479468990,-9255.86184109,0.00013698,2]
[380021706,1755479469000,-647.79,0.00013698,2]
[380021707,1755479469009,-279.594595,0.00013698,2]
[380021708,1755479469019,-151.0,0.00013698,2]
[380021709,1755479469028,-669.01,0.00013698,2]
[380021710,1755479469038,-400.0,0.00013698,2]
[380021711,1755479469047,-400.0,0.00013698,2]
[380021712,1755479469056,-2760.36,0.00013698,2]
[380021713,1755479469065,-400.0,0.00013698,2]
[380021714,1755479469074,-724.36716,0.00013698,2]
[380021715,1755479469084,-1739.55,0.00013698,2]
[380021716,1755479469093,-151.0,0.00013698,2]
[380021717,1755479469102,-400.0,0.00013698,2]
[380021718,1755479469111,-400.0,0.00013698,2]
[380021719,1755479469120,-813.54,0.00013698,2]
[380021720,1755479469129,-400.0,0.00013698,2]
[380021721,1755479469138,-151.0,0.00013698,2]
[380021722,1755479469147,-4022.54,0.00013698,2]
[380021723,1755479469156,-788.08,0.00013698,2]
[380021724,1755479469167,-400.0,0.00013698,2]
[380021725,1755479469177,-400.0,0.00013698,2]
[380021726,1755479469187,-3727.69,0.00013698,2]
[380021727,1755479469199,-1391.71,0.00013698,2]
[380021728,1755479469209,-400.0,0.00013698,2]
[380021729,1755479469219,-1040.944647,0.00013698,2]
[380021730,1755479469228,-4187.66,0.00013698,2]
[380021731,1755479469238,-2120.33967297,0.00013698,2]
[380021732,1755479469335,-1040.74032703,0.00013698,2]
[380021733,1755479469344,-5014.25,0.00013698,2]
[380021734,1755479469354,-3789.36,0.00013698,2]
[380021735,1755479469363,-400.0,0.00013698,2]
[380021736,1755479469373,-400.0,0.00013698,2]
[380021737,1755479469382,-208.94878547,0.00013698,2]
[380021738,1755479469391,-1040.944647,0.00013698,2]
[380021739,1755479469400,-400.0,0.00013698,2]
[380021740,1755479469409,-473.32,0.00013698,2]
[380021741,1755479469418,-11589.53,0.00013698,2]
[380021742,1755479469427,-2944.17,0.00013698,2]
[380021743,1755479469438,-400.0,0.00013698,2]
[380021744,1755479469448,-515.32471607,0.00013698,2]
[380021745,1755479469456,-400.0,0.00013698,2]
[380021746,1755479469466,-470.09,0.00013698,2]
[380021747,1755479469475,-4036.35,0.00013698,2]
[380021748,1755479469484,-259.455088,0.00013698,2]
[380021749,1755479469494,-400.0,0.00013698,2]
[380021750,1755479469503,-400.0,0.00013698,2]
[380021751,1755479469512,-259.455088,0.00013698,2]
[380021752,1755479469521,-3132.75,0.00013698,2]
[380021753,1755479469530,-585.28,0.00013698,2]
[380021754,1755479469539,-3775.26,0.00013698,2]
[380021755,1755479469548,-12846.05,0.00013698,2]
[380021756,1755479469557,-528.33,0.00013698,2]
[380021757,1755479469566,-151.0,0.00013698,2]
[380021758,1755479469575,-7705.37,0.00013698,2]
[380021759,1755479469584,-4969.67,0.00013698,2]
[380021760,1755479469593,-432.41,0.00013698,2]
[380021761,1755479469602,-411.3,0.00013698,2]
[380021762,1755479469612,-2111.34,0.00013698,2]
[380021763,1755479469621,-151.0,0.00013698,2]
[380021764,1755479469630,-532.31,0.00013698,2]
[380021765,1755479469639,-4543.45,0.00013698,2]
[380021766,1755479469648,-151.0,0.00013698,2]
[380021767,1755479469657,-442.2,0.00013698,2]
[380021768,1755479469666,-400.0,0.00013698,2]
[380021769,1755479469676,-151.0,0.00013698,2]
[380021770,1755479469685,-400.0,0.00013698,2]
[380021771,1755479469694,-5324.16,0.00013698,2]
[380021772,1755479469703,-186.798984,0.00013698,2]
[380021773,1755479469712,-400.0,0.00013698,2]
[380021774,1755479469722,-504.03,0.00013698,2]
[380021775,1755479469731,-4862.3,0.00013698,2]
[380021776,1755479469740,-400.0,0.00013698,2]
[380021777,1755479469748,-835.97,0.00013698,2]
[380021778,1755479469757,-400.0,0.00013698,2]
[380021779,1755479469767,-400.0,0.00013698,2]
[380021780,1755479469779,-4178.62,0.00013698,2]
[380021781,1755479469789,-662.93,0.00013698,2]
[380021782,1755479469798,-400.0,0.00013698,2]
[380021783,1755479469807,-190.057222,0.00013698,2]
[380021784,1755479469817,-4263.26,0.00013698,2]
[380021785,1755479469828,-4801.94,0.00013698,2]
[380021786,1755479469837,-151.0,0.00013698,2]
[380021787,1755479469847,-582.04,0.00013698,2]
[380021788,1755479469856,-2541.77,0.00013698,2]
[380021789,1755479469865,-186.798984,0.00013698,2]
[380021790,1755479469874,-414.87,0.00013698,2]
[380021791,1755479469883,-10245.69,0.00013698,2]
[380021792,1755479469892,-190.057222,0.00013698,2]
[380021793,1755479469901,-2840.44,0.00013698,2]
[380021794,1755479469910,-395.530632,0.00013698,2]
[380021795,1755479469919,-161.024265,0.00013698,2]
[380021796,1755479469928,-400.0,0.00013698,2]
[380021797,1755479469937,-400.0,0.00013698,2]
[380021798,1755479469946,-7163.48,0.00013698,2]
[380021799,1755479469955,-400.0,0.00013698,2]
[380021800,1755479469964,-400.0,0.00013698,2]
[380021801,1755479469973,-400.0,0.00013698,2]
[380021802,1755479469983,-395.530632,0.00013698,2]
[380021803,1755479469992,-400.0,0.00013698,2]
[380021804,1755479470001,-151.0,0.00013698,2]
[380021805,1755479470010,-2071.81,0.00013698,2]
[380021806,1755479470019,-161.024265,0.00013698,2]
[380021807,1755479470028,-433.14,0.00013698,2]
[380021808,1755479470037,-400.0,0.00013698,2]
[380021809,1755479470046,-151.0,0.00013698,2]
[380021810,1755479470055,-400.0,0.00013698,2]
[380021811,1755479470064,-400.0,0.00013698,2]
[380021812,1755479470073,-402.62,0.00013698,2]
[380021813,1755479470083,-3445.84,0.00013698,2]
[380021814,1755479470092,-9509.91,0.00013698,2]
[380021815,1755479470101,-2608.23,0.00013698,2]
[380021816,1755479470110,-405.9,0.00013698,2]
[380021817,1755479470118,-569.57206674,0.00013698,2]
[380021818,1755479471554,-454.01953552,0.00010387,2]
[380021819,1755479471564,-3.11567054,0.00010387,2]
[380021820,1755479474024,-176.1495961,0.00010387,2]
[380021821,1755479474033,-173.10912903,0.00010387,2]
[380021822,1755479474043,-144.47727647,0.00012141,2]
[380021823,1755479474072,-572.52272353,0.00012141,2]
[380021824,1755479474081,-151.177169,0.000123,2]
[380021825,1755479474091,-1393.189068,0.000123,2]
[380021826,1755479474099,-151.0,0.000123,2]
[380021827,1755479474108,-151.0,0.000123,2]
[380021828,1755479474118,-120.72793326,0.00013698,2]
[380021829,1755479474127,-698.32,0.00013698,2]
[380021830,1755479474136,-2633.505655,0.00013698,2]
[380021831,1755479474145,-4654.99,0.00013698,2]
[380021832,1755479474154,-5016.9,0.00013698,2]
[380021833,1755479474163,-2359.49,0.00013698,2]
[380021834,1755479474172,-153.87632121,0.00013698,2]
[380021835,1755479474181,-796.49,0.00013698,2]
[380021836,1755479474191,-400.0,0.00013698,2]
[380021837,1755479474200,-2633.505655,0.00013698,2]
[380021838,1755479474209,-1136.97,0.00013698,2]
[380021839,1755479474218,-9074.99,0.00013698,2]
[380021840,1755479474227,-5904.50866321,0.00013698,2]
[380021841,1755479512194,-669.01,0.00011477,2]
[380021842,1755479521726,-400.0,0.000109,2]
[380021843,1755479533067,-400.0,0.000109,2]
[380021844,1755479544742,-200.0,0.000109,2]
[380021845,1755479552343,-109.0352643,0.00011477,2]
[380021846,1755479552371,-206.2966314,0.00011889,2]
[380021847,1755479552385,-93.7033686,0.00011889,2]
[380021848,1755479552394,-15.3318957,0.00011889,2]
[380021849,1755479552424,-234.6681043,0.00011889,2]
[380021850,1755479552730,-65.3318957,0.00012293,2]
[380021851,1755479565345,-394.20966645,0.00011888,2]
[380021852,1755479565372,-183.38342251,0.00012293,2]
[380021853,1755479565750,-394.20966645,0.00012293,2]
[380021854,1755479565761,-183.38342251,0.00012293,2]
[380021855,1755479565784,-1605.17382208,0.00012293,2]
[380021856,1755479569539,160.0,0.00015,20]
[380021857,1755479577221,-817.23308896,0.00012293,2]
[380021858,1755479577248,-817.23308896,0.00012293,2]
[380021859,1755479577261,-105.08382208,0.00012293,2]
[380021860,1755479584725,-1861.13851122,0.00012293,2]
[380021861,1755479584738,-5533.58481865,0.00012293,2]
[380021862,1755479613603,-300.0,0.00012299,2]
[380021863,1755479613627,-300.0,0.00012299,2]
[380021864,1755479613652,-151.0,0.000123,2]
[380021865,1755479613661,-62.54,0.000123,2]
[380021866,1755479622346,-400.0,0.000123,2]
[380021867,1755479628215,-151.0,0.000123,2]
[380021868,1755479635472,-309.04705,0.000123,2]
[380021869,1755479635500,-922.58705,0.000123,2]
[380021870,1755479635527,-243.181327,0.000123,2]
[380021871,1755479635553,-243.181327,0.000123,2]
[380021872,1755479635582,-309.04705,0.00012348,2]
[380021873,1755479635631,-922.58705,0.00012348,2]
[380021874,1755479635651,-243.181327,0.00012348,2]
[380021875,1755479635662,-243.181327,0.00012348,2]
[380021876,1755479635682,-586.546492,0.00012348,2]
[380021877,1755479643180,-300.0,0.000123,2]
[380021878,1755479665178,-1644.74606896,0.00012348,2]
[380021879,1755479665516,-438.19786208,0.00012348,2]
[380021880,1755479665526,-300.0,0.00012412,2]
[380021881,1755479665535,-1000.0,0.00012487,2]
[380021882,1755479665544,-300.0,0.00012625,2]
[380021883,1755479665554,-44.74606896,0.00012625,2]
[380021884,1755479673000,275.94676652,0.00012347,2]
[380021885,1755479677341,1000.0,0.000109,2]
[380021886,1755479690238,193.16273656,0.00012347,2]
[380021887,1755479693043,-205.25393104,0.00012625,2]
[380021888,1755479693069,-205.25393104,0.00012635,2]
[380021889,1755479693097,-3777.15213792,0.00012635,2]
[380021890,1755479700096,-77.03393104,0.00012635,2]
[380021891,1755479756210,170.0,0.00011908,7]
[380021893,1755480343538,-0.48222944,0.00011,2]
[380021894,1755480357223,-205.25393104,0.00011,2]
[380021895,1755480364876,-300.0,0.00010999,2]
[380021896,1755480373217,-275.94676652,0.00011,2]
[380021897,1755480380283,-175.93282808,0.00011,2]
[380021898,1755480386880,-300.0,0.00011,2]
[380021899,1755480395228,-260.76072454,0.00010999,2]
[380021900,1755480396392,-2.54572284,0.00010999,2]
[380021901,1755480401673,-193.16273656,0.000109,2]
[380021902,1755480408749,-309.04705,0.000109,2]
[380021903,1755480410000,1820.0,0.00024,120]
[380021906,1755480415846,-164.06519699,0.000109,2]
[380021907,1755480415875,-253.0,0.00010999,2]
[380021908,1755480417043,-88.45665602,0.00011,2]
[380021909,1755480437510,-500.0,0.00010973,2]
[380021910,1755480437545,-144.74606896,0.00010973,2]
[380021911,1755480437592,-355.25393104,0.00010973,2]
[380021912,1755480445574,-100.0,0.00010999,2]
[380021913,1755480445679,-200.0,0.00010999,2]
[380021914,1755480453234,-121.57677036,0.00010999,2]
[380021915,1755480453327,-28.42322964,0.00010999,2]
[380021916,1755480460436,-922.58705,0.00011,2]
[380021917,1755480468116,177.75195697,0.000109,2]
[380021918,1755480475484,-65.42937003,0.00010993,2]
[380021919,1755480481575,-110.47855043,0.00010993,2]
[380021920,1755480481599,-79.04289914,0.00010993,2]
[380021921,1755480488641,-150.0,0.00010993,2]
[380021922,1755480488711,-94.20966645,0.00010999,2]
[380021923,1755480497350,-205.79033355,0.00010999,2]
[380021924,1755480498074,-1193.59315498,0.00011,2]
[380021927,1755480504924,-817.23308896,0.00011,2]
[380021928,1755480511467,-5533.58481865,0.00011,2]
[380021929,1755480526597,243.181327,0.000109,2]
[380021930,1755480533796,-425.828673,0.000109,2]
[380021931,1755480556865,200.0,0.00024,120]
[380021948,1755480632693,-285.04836224,0.0001084,2]
[380021949,1755480632703,-250.0,0.0001095,2]
[380021950,1755480632712,-500.0,0.00010973,2]
[380021951,1755480632721,-500.0,0.00010973,2]
[380021952,1755480632731,-500.0,0.00010973,2]
[380021953,1755480632741,-150.0,0.00010993,2]
[380021954,1755480632750,-150.0,0.00010993,2]
[380021955,1755480632760,-45.09714024,0.00010993,2]
[380021956,1755480632771,-1109.43074926,0.00010993,2]
[380021957,1755480632781,-1000.0,0.00010999,2]
[380021958,1755480632791,-1002.39700146,0.00010999,2]
[380021959,1755480632801,-233.39140859,0.00010999,2]
[380021960,1755480632813,-488.70112046,0.00010999,2]
[380021961,1755480632871,-477.90747095,0.00010999,2]
[380021962,1755480632880,-150.0,0.00010999,2]
[380021963,1755480632889,-151.43211816,0.00010999,2]
[380021964,1755480632897,-116450.66041088,0.00011,2]
[380021972,1755480632980,-601.45099476,0.00011,2]
[380021974,1755480632991,-3342.79084581,0.00011,2]
[380021977,1755480633002,-377.0,0.00011,2]
[380021979,1755480633013,-251.74160791,0.00011,2]
[380021984,1755480633073,-24028.0557068,0.00011,2]
[380021985,1755480633085,-4768.20348032,0.00011,2]
[380021986,1755480633098,-3962.00369877,0.00011,2]
[380021987,1755480633110,-140524.09920006,0.00011,2]
[380021995,1755480633267,-4270.81238844,0.00011,2]
[380021997,1755480633279,-803.51,0.00011,2]
[380022169,1755480638611,-320.14989667,0.00010899,2]
[380022172,1755480638621,-20359185.19230453,0.00011,2]
[380022174,1755480638632,-3532.67106044,0.00011,2]
[380022179,1755480638672,-1764.75320448,0.00011,2]
[380022181,1755480638684,-1525.35521511,0.00011,2]
[380022184,1755480638699,-4432.120592,0.00011,2]
[380022186,1755480638710,-658.43401484,0.00011,2]
[380022188,1755480638722,-3000.28686153,0.00011,2]
[380022190,1755480638733,-442.49999999,0.00011,2]
[380022353,1755480640422,-23526.67318487,0.00011,2]
[380022355,1755480640434,-1239.71956777,0.00011,2]
[380022383,1755480640717,-314.17767511,0.00011,2]
[380022385,1755480640733,-260.90963326,0.00011,2]
[380022386,1755480640747,-473.375,0.00011,2]
[380022388,1755480640775,-58592.23084696,0.00011,2]
[380022790,1755480644656,-177.7454322,0.00010899,2]
[380022792,1755480644666,-85.23257234,0.00011,2]